[Event "*** Titled Tuesday Blitz"]
[Site "Chess.com"]
[Date "2020.04.14"]
[Round "3"]
[White "CalinGheorghiu"]
[Black "gmjoey1"]
[Result "1/2-1/2"]
[WhiteElo "2337"]
[BlackElo "2557"]
[TimeControl "180+1"]
[EndTime "10:27:03 PDT"]
[Termination "Game drawn by repetition"]

1. e4 {[%clk 0:03:00.9]} 1... c6 {[%clk 0:02:58.3]} 2. Nc3 {[%clk 0:02:58.5]}
2... d5 {[%clk 0:02:58.3]} 3. Nf3 {[%clk 0:02:59]} 3... dxe4 {[%clk 0:02:57.6]}
4. Nxe4 {[%clk 0:02:59]} 4... Nf6 {[%clk 0:02:58.5]} 5. Nxf6+ {[%clk 0:02:58.2]}
5... exf6 {[%clk 0:02:57.5]} 6. d4 {[%clk 0:02:58.7]} 6... Bd6 {[%clk 0:02:57]}
7. Bd3 {[%clk 0:02:58.7]} 7... O-O {[%clk 0:02:57.9]} 8. h3 {[%clk 0:02:54.3]}
8... Re8+ {[%clk 0:02:56.2]} 9. Be3 {[%clk 0:02:52.4]} 9... Bf4 {[%clk
0:02:50.3]} 10. Qd2 {[%clk 0:02:51.2]} 10... Qe7 {[%clk 0:02:49]} 11. Ke2 {[%clk
0:02:35.2]} 11... Nd7 {[%clk 0:02:43.6]} 12. Rhe1 {[%clk 0:02:34.5]} 12... Bxe3
{[%clk 0:02:42.6]} 13. fxe3 {[%clk 0:02:34.4]} 13... Nf8 {[%clk 0:02:41.5]} 14.
Kf1 {[%clk 0:02:34.1]} 14... Qd6 {[%clk 0:02:41.4]} 15. Kg1 {[%clk 0:02:33.6]}
15... Ng6 {[%clk 0:02:39.5]} 16. c4 {[%clk 0:02:32.6]} 16... c5 {[%clk
0:02:34.8]} 17. d5 {[%clk 0:02:27.2]} 17... Bd7 {[%clk 0:02:32.5]} 18. Bxg6
{[%clk 0:02:25.7]} 18... hxg6 {[%clk 0:02:30.7]} 19. e4 {[%clk 0:02:26.2]} 19...
Re7 {[%clk 0:02:29.3]} 20. Re2 {[%clk 0:02:22.5]} 20... Rae8 {[%clk 0:02:29]}
21. Rae1 {[%clk 0:02:21.7]} 21... Qg3 {[%clk 0:02:19.8]} 22. Kh1 {[%clk
0:02:12.5]} 22... Bxh3 {[%clk 0:02:16.9]} 23. d6 {[%clk 0:02:06.4]} 23... Rd7
{[%clk 0:02:12]} 24. Re3 {[%clk 0:01:59.3]} 24... Rxd6 {[%clk 0:01:47.8]} 25.
Qc2 {[%clk 0:01:43.2]} 25... Be6 {[%clk 0:01:46.3]} 26. e5 {[%clk 0:01:38.1]}
26... fxe5 {[%clk 0:01:45.3]} 27. Nxe5 {[%clk 0:01:37.5]} 27... Qh4+ {[%clk
0:01:43.8]} 28. Kg1 {[%clk 0:01:37.6]} 28... Bf5 {[%clk 0:01:31.7]} 29. Qa4
{[%clk 0:01:30.3]} 29... Ree6 {[%clk 0:01:06.4]} 30. Qxa7 {[%clk 0:01:27.5]}
30... Qd4 {[%clk 0:01:02.6]} 31. Kh1 {[%clk 0:01:03.2]} 31... Qh4+ {[%clk
0:00:42.1]} 32. Kg1 {[%clk 0:01:01.9]} 32... Qd4 {[%clk 0:00:41.9]} 33. Kh1
{[%clk 0:01:01.7]} 33... Qh4+ {[%clk 0:00:29.4]} 34. Kg1 {[%clk 0:01:00.6]}
1/2-1/2

[Event "*** Titled Tuesday Blitz"]
[Site "Chess.com"]
[Date "2020.04.14"]
[Round "3"]
[White "Bastiandash"]
[Black "semchik73"]
[Result "1-0"]
[WhiteElo "2062"]
[BlackElo "2283"]
[TimeControl "180+1"]
[EndTime "10:27:05 PDT"]
[Termination "Bastiandash won by checkmate"]

1. d4 {[%clk 0:03:00.9]} 1... d5 {[%clk 0:02:59.6]} 2. Nf3 {[%clk 0:03:01.8]}
2... c6 {[%clk 0:03:00.5]} 3. c3 {[%clk 0:03:02.4]} 3... Nf6 {[%clk 0:03:00.9]}
4. Bg5 {[%clk 0:03:02.9]} 4... Ne4 {[%clk 0:03:00.4]} 5. Bf4 {[%clk 0:03:01.9]}
5... e6 {[%clk 0:02:59.4]} 6. Nbd2 {[%clk 0:03:01.6]} 6... Bd6 {[%clk
0:02:59.3]} 7. e3 {[%clk 0:03:00.6]} 7... Bxf4 {[%clk 0:02:58.5]} 8. exf4 {[%clk
0:03:01.5]} 8... f5 {[%clk 0:02:56]} 9. Ne5 {[%clk 0:02:55.9]} 9... O-O {[%clk
0:02:55.9]} 10. Bd3 {[%clk 0:02:50]} 10... Qh4 {[%clk 0:02:53.8]} 11. g3 {[%clk
0:02:48.7]} 11... Qh3 {[%clk 0:02:52.3]} 12. Bf1 {[%clk 0:02:40.8]} 12... Qh6
{[%clk 0:02:50.6]} 13. Bg2 {[%clk 0:02:40]} 13... Nd7 {[%clk 0:02:47.9]} 14.
Ndf3 {[%clk 0:02:28]} 14... g5 {[%clk 0:02:39.4]} 15. fxg5 {[%clk 0:02:12.5]}
15... Nxg5 {[%clk 0:02:39]} 16. Nxg5 {[%clk 0:02:09.2]} 16... Qxg5 {[%clk
0:02:38.2]} 17. f4 {[%clk 0:02:09]} 17... Qg7 {[%clk 0:02:33.1]} 18. O-O {[%clk
0:01:56.3]} 18... Nxe5 {[%clk 0:02:29.6]} 19. fxe5 {[%clk 0:01:56.7]} 19... Bd7
{[%clk 0:02:29.4]} 20. Rf4 {[%clk 0:01:56.4]} 20... Be8 {[%clk 0:02:26.5]} 21.
Qe2 {[%clk 0:01:51.9]} 21... Qg5 {[%clk 0:02:21.1]} 22. Kh1 {[%clk 0:01:45.6]}
22... Bh5 {[%clk 0:02:20.8]} 23. Bf3 {[%clk 0:01:45.6]} 23... Bxf3+ {[%clk
0:02:19.8]} 24. Qxf3 {[%clk 0:01:46.5]} 24... Rf7 {[%clk 0:02:19.5]} 25. Rg1
{[%clk 0:00:54.7]} 25... Raf8 {[%clk 0:02:18.2]} 26. g4 {[%clk 0:00:51.8]} 26...
fxg4 {[%clk 0:02:16.3]} 27. Rgxg4 {[%clk 0:00:51.2]} 27... Rxf4 {[%clk
0:02:11.5]} 28. Rxg5+ {[%clk 0:00:48.6]} 28... Kh8 {[%clk 0:02:12]} 29. Qg3
{[%clk 0:00:17.4]} 29... Rf1+ {[%clk 0:02:11.8]} 30. Kg2 {[%clk 0:00:17.5]}
30... R1f7 {[%clk 0:02:09.7]} 31. h4 {[%clk 0:00:14.2]} 31... h6 {[%clk
0:02:09.4]} 32. Rg6 {[%clk 0:00:13.8]} 32... Kh7 {[%clk 0:02:09.7]} 33. Rxe6
{[%clk 0:00:13.1]} 33... Rg7 {[%clk 0:02:09.1]} 34. Qxg7+ {[%clk 0:00:13.1]}
34... Kxg7 {[%clk 0:02:09.6]} 35. Re7+ {[%clk 0:00:13.5]} 35... Kg6 {[%clk
0:02:10.1]} 36. Rxb7 {[%clk 0:00:13.1]} 36... Ra8 {[%clk 0:02:10.3]} 37. Kg3
{[%clk 0:00:12.3]} 37... Kf5 {[%clk 0:02:09.1]} 38. Kf3 {[%clk 0:00:11.6]} 38...
Rg8 {[%clk 0:02:09.5]} 39. Rxa7 {[%clk 0:00:10.9]} 39... Rg1 {[%clk 0:02:09.4]}
40. Rf7+ {[%clk 0:00:10.8]} 40... Ke6 {[%clk 0:02:08.7]} 41. Rf6+ {[%clk
0:00:10.9]} 41... Ke7 {[%clk 0:02:09.2]} 42. Rxc6 {[%clk 0:00:10.4]} 42... Rb1
{[%clk 0:02:08.4]} 43. Rd6 {[%clk 0:00:09]} 43... Rxb2 {[%clk 0:02:08.5]} 44.
Rxd5 {[%clk 0:00:09]} 44... Rxa2 {[%clk 0:02:09]} 45. Rc5 {[%clk 0:00:08.8]}
45... Rd2 {[%clk 0:02:08.6]} 46. Kg4 {[%clk 0:00:07.8]} 46... Kf7 {[%clk
0:02:07.8]} 47. Kh5 {[%clk 0:00:08.1]} 47... Kg7 {[%clk 0:02:07.8]} 48. Rc7+
{[%clk 0:00:08.2]} 48... Kg8 {[%clk 0:02:07.7]} 49. Kxh6 {[%clk 0:00:09.1]}
49... Rd3 {[%clk 0:02:07.2]} 50. h5 {[%clk 0:00:09.2]} 50... Re3 {[%clk
0:02:06.3]} 51. Kg6 {[%clk 0:00:06.8]} 51... Kf8 {[%clk 0:02:06.7]} 52. Kf6
{[%clk 0:00:07]} 52... Rg3 {[%clk 0:02:07]} 53. Rc8# {[%clk 0:00:05.6]} 1-0

[Event "*** Titled Tuesday Blitz"]
[Site "Chess.com"]
[Date "2020.04.14"]
[Round "3"]
[White "MisaPap"]
[Black "GMBenjaminBok"]
[Result "0-1"]
[WhiteElo "2653"]
[BlackElo "2886"]
[TimeControl "180+1"]
[EndTime "10:27:07 PDT"]
[Termination "GMBenjaminBok won by resignation"]

1. e4 {[%clk 0:03:00.9]} 1... c5 {[%clk 0:03:00]} 2. c3 {[%clk 0:03:00]} 2...
Nf6 {[%clk 0:02:58.9]} 3. e5 {[%clk 0:03:00.2]} 3... Nd5 {[%clk 0:02:59.5]} 4.
Nf3 {[%clk 0:03:00.6]} 4... Nc6 {[%clk 0:02:59.4]} 5. d4 {[%clk 0:03:00.8]} 5...
cxd4 {[%clk 0:02:58.9]} 6. cxd4 {[%clk 0:03:00.5]} 6... d6 {[%clk 0:02:59.5]} 7.
Bc4 {[%clk 0:03:00.2]} 7... dxe5 {[%clk 0:02:59.9]} 8. Nxe5 {[%clk 0:02:51.7]}
8... e6 {[%clk 0:02:58.1]} 9. O-O {[%clk 0:02:50.5]} 9... Be7 {[%clk 0:02:57.5]}
10. Nc3 {[%clk 0:02:50.2]} 10... Nxc3 {[%clk 0:02:53.1]} 11. bxc3 {[%clk
0:02:37.6]} 11... Nxe5 {[%clk 0:02:50.7]} 12. dxe5 {[%clk 0:02:38.5]} 12... Qxd1
{[%clk 0:02:48.8]} 13. Rxd1 {[%clk 0:02:37.9]} 13... Bd7 {[%clk 0:02:49.7]} 14.
Rb1 {[%clk 0:02:35.8]} 14... Bc6 {[%clk 0:02:42.2]} 15. Bb5 {[%clk 0:02:35.7]}
15... Bxb5 {[%clk 0:02:38.9]} 16. Rxb5 {[%clk 0:02:35.1]} 16... b6 {[%clk
0:02:39.5]} 17. a4 {[%clk 0:02:33.6]} 17... Bc5 {[%clk 0:02:24.5]} 18. Be3
{[%clk 0:02:08.6]} 18... Bxe3 {[%clk 0:02:18.8]} 19. fxe3 {[%clk 0:02:09.5]}
19... Rc8 {[%clk 0:02:03.5]} 20. a5 {[%clk 0:02:08.3]} 20... Rxc3 {[%clk
0:02:02.8]} 21. axb6 {[%clk 0:02:08.1]} 21... axb6 {[%clk 0:02:03.4]} 22. Rxb6
{[%clk 0:02:05.5]} 22... O-O {[%clk 0:02:03.8]} 23. Kf2 {[%clk 0:01:58.2]} 23...
Rc5 {[%clk 0:02:02.5]} 24. Rbd6 {[%clk 0:01:56.6]} 24... Rxe5 {[%clk 0:02:01]}
25. Rd8 {[%clk 0:01:56.8]} 25... g6 {[%clk 0:01:59.4]} 26. h4 {[%clk 0:01:53.6]}
26... Rxd8 {[%clk 0:01:57.8]} 27. Rxd8+ {[%clk 0:01:52.9]} 27... Kg7 {[%clk
0:01:58.7]} 28. Kf3 {[%clk 0:01:53.5]} 28... Rf5+ {[%clk 0:01:53]} 29. Ke2
{[%clk 0:01:49.7]} 29... Ra5 {[%clk 0:01:49.4]} 30. g3 {[%clk 0:01:49.3]} 30...
Kf6 {[%clk 0:01:39.5]} 31. Rd7 {[%clk 0:01:48.6]} 31... h6 {[%clk 0:01:34.8]}
32. Kf3 {[%clk 0:01:48.3]} 32... Rf5+ {[%clk 0:01:34.5]} 33. Ke2 {[%clk
0:01:48]} 33... Rd5 {[%clk 0:01:34.4]} 34. Rc7 {[%clk 0:01:47.2]} 34... Rd8
{[%clk 0:01:32.5]} 35. Kf3 {[%clk 0:01:47]} 35... Re8 {[%clk 0:01:32.4]} 36. Kf2
{[%clk 0:01:44.2]} 36... Re7 {[%clk 0:01:32.1]} 37. Rc5 {[%clk 0:01:43.3]} 37...
Ra7 {[%clk 0:01:31]} 38. Kf3 {[%clk 0:01:40.4]} 38... Ra4 {[%clk 0:01:25.9]} 39.
Rc7 {[%clk 0:01:40]} 39... g5 {[%clk 0:01:20.1]} 40. hxg5+ {[%clk 0:01:39.6]}
40... hxg5 {[%clk 0:01:21]} 41. Rb7 {[%clk 0:01:39.8]} 41... g4+ {[%clk
0:01:18.1]} 42. Kf2 {[%clk 0:01:39.5]} 42... Kg6 {[%clk 0:01:07.3]} 43. Rc7
{[%clk 0:01:38.7]} 43... f6 {[%clk 0:01:06.2]} 44. Rc5 {[%clk 0:01:38.2]} 44...
e5 {[%clk 0:01:06]} 45. Rc8 {[%clk 0:01:27.6]} 45... Kf5 {[%clk 0:01:05.6]} 46.
Rf8 {[%clk 0:01:27.2]} 46... Ra2+ {[%clk 0:01:02.3]} 47. Kf1 {[%clk 0:01:26.8]}
47... Ra6 {[%clk 0:01:01.4]} 48. Rg8 {[%clk 0:01:26.4]} 48... Ke4 {[%clk
0:01:00.3]} 49. Kf2 {[%clk 0:01:20.5]} 49... Ra2+ {[%clk 0:00:58.5]} 50. Kg1
{[%clk 0:01:20.5]} 50... f5 {[%clk 0:00:56]} 51. Rg5 {[%clk 0:01:18.6]} 51...
Re2 {[%clk 0:00:54.3]} 0-1

[Event "*** Titled Tuesday Blitz"]
[Site "Chess.com"]
[Date "2020.04.14"]
[Round "3"]
[White "viditchess"]
[Black "Semen_Khanin"]
[Result "1-0"]
[WhiteElo "2989"]
[BlackElo "2611"]
[TimeControl "180+1"]
[EndTime "10:27:07 PDT"]
[Termination "viditchess won by resignation"]

1. d4 {[%clk 0:03:00.9]} 1... Nf6 {[%clk 0:02:59.7]} 2. c4 {[%clk 0:03:01.1]}
2... g6 {[%clk 0:02:58.9]} 3. Nc3 {[%clk 0:02:59.6]} 3... d5 {[%clk 0:02:59.2]}
4. cxd5 {[%clk 0:02:59.6]} 4... Nxd5 {[%clk 0:02:59.2]} 5. e4 {[%clk 0:03:00.5]}
5... Nxc3 {[%clk 0:02:59.8]} 6. bxc3 {[%clk 0:03:01.4]} 6... Bg7 {[%clk
0:03:00.4]} 7. Be3 {[%clk 0:03:00.2]} 7... c5 {[%clk 0:02:59.3]} 8. Nf3 {[%clk
0:03:00.4]} 8... Qa5 {[%clk 0:02:58.7]} 9. Qd2 {[%clk 0:03:00.3]} 9... O-O
{[%clk 0:02:58.7]} 10. Rc1 {[%clk 0:02:59.5]} 10... Nd7 {[%clk 0:02:58.9]} 11.
Bh6 {[%clk 0:02:57.9]} 11... cxd4 {[%clk 0:02:49.6]} 12. Bxg7 {[%clk 0:02:52.6]}
12... Kxg7 {[%clk 0:02:47.8]} 13. cxd4 {[%clk 0:02:53.2]} 13... Qxd2+ {[%clk
0:02:40.8]} 14. Kxd2 {[%clk 0:02:54.1]} 14... e5 {[%clk 0:02:08.7]} 15. dxe5
{[%clk 0:02:38]} 15... Re8 {[%clk 0:01:59]} 16. Bb5 {[%clk 0:02:36.9]} 16... a6
{[%clk 0:01:56.8]} 17. Bxd7 {[%clk 0:02:25.3]} 17... Bxd7 {[%clk 0:01:57]} 18.
Rc7 {[%clk 0:02:21.9]} 18... Bc6 {[%clk 0:01:53.1]} 19. Ke3 {[%clk 0:02:16]}
19... h6 {[%clk 0:01:47.3]} 20. Rd1 {[%clk 0:02:08]} 20... Re6 {[%clk
0:01:03.4]} 21. Rd6 {[%clk 0:01:42.9]} 21... Rae8 {[%clk 0:01:01.8]} 22. Rxe6
{[%clk 0:01:39.8]} 22... Rxe6 {[%clk 0:01:01.5]} 23. h4 {[%clk 0:01:39.5]} 23...
Re8 {[%clk 0:00:55]} 24. g4 {[%clk 0:01:37]} 24... a5 {[%clk 0:00:52.3]} 25. g5
{[%clk 0:01:36.2]} 25... h5 {[%clk 0:00:45.2]} 26. Kf4 {[%clk 0:01:36.2]} 26...
Kf8 {[%clk 0:00:39.3]} 27. Nd4 {[%clk 0:01:35.9]} 27... Rd8 {[%clk 0:00:24.7]}
28. Ke3 {[%clk 0:01:20.3]} 28... Rd7 {[%clk 0:00:23.4]} 29. Rc8+ {[%clk
0:01:19.5]} 29... Ke7 {[%clk 0:00:23.7]} 30. f4 {[%clk 0:01:17.9]} 30... Rd8
{[%clk 0:00:15.2]} 31. Rxc6 {[%clk 0:01:07.4]} 1-0

[Event "*** Titled Tuesday Blitz"]
[Site "Chess.com"]
[Date "2020.04.14"]
[Round "3"]
[White "Jagerrmeisterr"]
[Black "MosheFriedland"]
[Result "1-0"]
[WhiteElo "2686"]
[BlackElo "2379"]
[TimeControl "180+1"]
[EndTime "10:27:08 PDT"]
[Termination "Jagerrmeisterr won by resignation"]

1. e4 {[%clk 0:03:00.9]} 1... c5 {[%clk 0:02:59.7]} 2. Nc3 {[%clk 0:02:59.8]}
2... a6 {[%clk 0:02:59.3]} 3. g4 {[%clk 0:02:59.1]} 3... b5 {[%clk 0:02:54.3]}
4. Bg2 {[%clk 0:02:59.5]} 4... Bb7 {[%clk 0:02:54.3]} 5. d3 {[%clk 0:02:59.4]}
5... e6 {[%clk 0:02:53.5]} 6. Nh3 {[%clk 0:02:59.5]} 6... d5 {[%clk 0:02:47.8]}
7. exd5 {[%clk 0:02:59.2]} 7... Nf6 {[%clk 0:02:47.5]} 8. O-O {[%clk 0:02:50.8]}
8... Nxd5 {[%clk 0:02:46.7]} 9. Ne4 {[%clk 0:02:50.2]} 9... Be7 {[%clk
0:02:39.7]} 10. c4 {[%clk 0:02:38.9]} 10... Nb4 {[%clk 0:02:32]} 11. Be3 {[%clk
0:02:31.7]} 11... Nd7 {[%clk 0:01:42.5]} 12. Nd6+ {[%clk 0:02:18.5]} 12... Bxd6
{[%clk 0:01:42.2]} 13. Bxb7 {[%clk 0:02:19.4]} 13... Rb8 {[%clk 0:01:11.9]} 14.
Bg2 {[%clk 0:02:17]} 14... Ne5 {[%clk 0:01:11.4]} 15. cxb5 {[%clk 0:01:59]}
15... axb5 {[%clk 0:01:06.1]} 16. d4 {[%clk 0:01:56.6]} 16... Nc4 {[%clk
0:01:03.2]} 17. Bg5 {[%clk 0:01:13.8]} 17... Qc7 {[%clk 0:00:58.6]} 18. b3
{[%clk 0:01:10.4]} 18... Nb2 {[%clk 0:00:52.8]} 19. Qd2 {[%clk 0:01:07]} 19...
N2d3 {[%clk 0:00:50.1]} 20. a3 {[%clk 0:01:04.3]} 20... Bxh2+ {[%clk 0:00:49.1]}
21. Kh1 {[%clk 0:01:03.4]} 21... h6 {[%clk 0:00:46.6]} 22. Be3 {[%clk
0:00:58.8]} 22... cxd4 {[%clk 0:00:41]} 23. Bxd4 {[%clk 0:00:57.8]} 23... Rd8
{[%clk 0:00:39.2]} 24. Bxg7 {[%clk 0:00:51]} 24... Rg8 {[%clk 0:00:39.1]} 25.
Bf6 {[%clk 0:00:50.9]} 25... Rd7 {[%clk 0:00:19.3]} 26. axb4 {[%clk 0:00:50.6]}
1-0

[Event "*** Titled Tuesday Blitz"]
[Site "Chess.com"]
[Date "2020.04.14"]
[Round "3"]
[White "PauloCesarCosta_sad"]
[Black "GMJustin"]
[Result "0-1"]
[WhiteElo "2091"]
[BlackElo "2383"]
[TimeControl "180+1"]
[EndTime "10:27:08 PDT"]
[Termination "GMJustin won on time"]

1. Nf3 {[%clk 0:03:00.9]} 1... g6 {[%clk 0:02:57.3]} 2. d4 {[%clk 0:02:59.4]}
2... Nf6 {[%clk 0:02:55.2]} 3. g3 {[%clk 0:02:59.9]} 3... Bg7 {[%clk 0:02:51.6]}
4. Bg2 {[%clk 0:03:00.4]} 4... d5 {[%clk 0:02:46.9]} 5. O-O {[%clk 0:02:58.4]}
5... O-O {[%clk 0:02:46.4]} 6. c4 {[%clk 0:02:58.7]} 6... dxc4 {[%clk
0:02:46.2]} 7. Na3 {[%clk 0:02:53.6]} 7... c3 {[%clk 0:02:46.4]} 8. bxc3 {[%clk
0:02:52]} 8... c5 {[%clk 0:02:46.7]} 9. Nc4 {[%clk 0:02:35.8]} 9... Nc6 {[%clk
0:02:40.7]} 10. Nce5 {[%clk 0:02:21.8]} 10... Be6 {[%clk 0:02:32.6]} 11. Nxc6
{[%clk 0:02:02.3]} 11... bxc6 {[%clk 0:02:32.3]} 12. Ne5 {[%clk 0:02:02.7]}
12... Bd5 {[%clk 0:02:30.2]} 13. Nxc6 {[%clk 0:01:58.6]} 13... Qd6 {[%clk
0:02:20.7]} 14. Ne5 {[%clk 0:01:41.2]} 14... Bxg2 {[%clk 0:02:18]} 15. Kxg2
{[%clk 0:01:41.1]} 15... Ne4 {[%clk 0:02:07.8]} 16. Bb2 {[%clk 0:01:19]} 16...
Rab8 {[%clk 0:01:50.2]} 17. Nc4 {[%clk 0:01:00.9]} 17... Qd5 {[%clk 0:01:30.9]}
18. Ne3 {[%clk 0:01:00.7]} 18... Qa8 {[%clk 0:01:21.1]} 19. Rb1 {[%clk
0:01:00.4]} 19... Nxc3+ {[%clk 0:01:19.2]} 20. Kg1 {[%clk 0:00:54.8]} 20... Nxd1
{[%clk 0:01:19]} 21. Nxd1 {[%clk 0:00:52.6]} 21... cxd4 {[%clk 0:01:18.3]} 22.
Rc1 {[%clk 0:00:03.7]} 22... Rfc8 {[%clk 0:01:16.6]} 23. Ba3 {[%clk 0:00:03]}
23... e5 {[%clk 0:01:11.9]} 24. Rxc8+ {[%clk 0:00:02.3]} 24... Rxc8 {[%clk
0:01:11.1]} 25. Bd6 {[%clk 0:00:03.2]} 25... Qd5 {[%clk 0:01:09.7]} 26. Bb4
{[%clk 0:00:02]} 26... a5 {[%clk 0:01:08.6]} 27. Bd2 {[%clk 0:00:01.4]} 27...
Qxa2 {[%clk 0:01:08.4]} 0-1

[Event "*** Titled Tuesday Blitz"]
[Site "Chess.com"]
[Date "2020.04.14"]
[Round "3"]
[White "KarpovVadim"]
[Black "artooon"]
[Result "1/2-1/2"]
[WhiteElo "2397"]
[BlackElo "2688"]
[TimeControl "180+1"]
[EndTime "10:27:09 PDT"]
[Termination "Game drawn by repetition"]

1. Nf3 {[%clk 0:03:00.9]} 1... Nf6 {[%clk 0:03:00]} 2. c4 {[%clk 0:03:00.1]}
2... e6 {[%clk 0:03:00.4]} 3. d4 {[%clk 0:03:00]} 3... d5 {[%clk 0:03:01]} 4.
Nc3 {[%clk 0:03:00.2]} 4... c6 {[%clk 0:03:01.2]} 5. e3 {[%clk 0:02:59]} 5...
Nbd7 {[%clk 0:03:00.7]} 6. Bd3 {[%clk 0:02:58.5]} 6... Bd6 {[%clk 0:03:01.2]} 7.
O-O {[%clk 0:02:56.9]} 7... O-O {[%clk 0:03:01.8]} 8. e4 {[%clk 0:02:56.2]} 8...
dxe4 {[%clk 0:03:02.7]} 9. Nxe4 {[%clk 0:02:55.9]} 9... Nxe4 {[%clk 0:03:03.6]}
10. Bxe4 {[%clk 0:02:55.8]} 10... Nf6 {[%clk 0:03:04.5]} 11. Bc2 {[%clk
0:02:55.7]} 11... c5 {[%clk 0:03:00.5]} 12. Be3 {[%clk 0:02:42.5]} 12... Qc7
{[%clk 0:02:56]} 13. Qe2 {[%clk 0:02:32]} 13... b6 {[%clk 0:02:53.9]} 14. dxc5
{[%clk 0:02:28.1]} 14... Bxc5 {[%clk 0:02:54.8]} 15. Bxc5 {[%clk 0:02:27.2]}
15... Qxc5 {[%clk 0:02:55.4]} 16. Rad1 {[%clk 0:02:23.2]} 16... Bb7 {[%clk
0:02:55.3]} 17. Ne5 {[%clk 0:02:23.2]} 17... Rfd8 {[%clk 0:02:54]} 18. h3 {[%clk
0:02:17.1]} 18... a6 {[%clk 0:02:36.6]} 19. b3 {[%clk 0:02:14.5]} 19... h6
{[%clk 0:02:36.2]} 20. Rfe1 {[%clk 0:02:12.4]} 20... a5 {[%clk 0:02:35.7]} 21.
Nd3 {[%clk 0:02:00.1]} 21... Qc6 {[%clk 0:02:33.8]} 22. f3 {[%clk 0:01:54.8]}
22... a4 {[%clk 0:02:33.7]} 23. Ne5 {[%clk 0:01:52.3]} 23... Qc5+ {[%clk
0:02:33.4]} 24. Qf2 {[%clk 0:01:52.3]} 24... Rxd1 {[%clk 0:02:31.5]} 25. Bxd1
{[%clk 0:01:50.8]} 25... axb3 {[%clk 0:02:31.3]} 26. Qxc5 {[%clk 0:01:47.2]}
26... bxc5 {[%clk 0:02:21.6]} 27. axb3 {[%clk 0:01:46.8]} 27... Kf8 {[%clk
0:02:13.7]} 28. Re2 {[%clk 0:01:45.1]} 28... Ra1 {[%clk 0:02:11.9]} 29. Rd2
{[%clk 0:01:44.3]} 29... Ke7 {[%clk 0:02:12.3]} 30. Kf2 {[%clk 0:01:43.7]} 30...
Rb1 {[%clk 0:01:51.4]} 31. h4 {[%clk 0:01:40.9]} 31... g5 {[%clk 0:01:45]} 32.
hxg5 {[%clk 0:01:39.4]} 32... hxg5 {[%clk 0:01:45.9]} 33. g3 {[%clk 0:01:39]}
33... g4 {[%clk 0:01:45.3]} 34. Nxg4 {[%clk 0:01:32.8]} 34... Nxg4+ {[%clk
0:01:44.6]} 35. fxg4 {[%clk 0:01:32]} 35... Kf6 {[%clk 0:01:44.8]} 36. Rd7
{[%clk 0:01:28.9]} 36... Bc6 {[%clk 0:01:43.3]} 37. Rd6 {[%clk 0:01:27.5]} 37...
Be4 {[%clk 0:01:42.3]} 38. Ke3 {[%clk 0:01:24.6]} 38... Ke5 {[%clk 0:01:42.1]}
39. Rd8 {[%clk 0:01:20.7]} 39... Rb2 {[%clk 0:01:26]} 40. Rd7 {[%clk 0:01:14.7]}
40... Rg2 {[%clk 0:01:21.8]} 41. Rxf7 {[%clk 0:01:13.1]} 41... Rxg3+ {[%clk
0:01:21.7]} 42. Kd2 {[%clk 0:01:11.2]} 42... Rg2+ {[%clk 0:01:16.1]} 43. Ke3
{[%clk 0:01:09.7]} 43... Rg3+ {[%clk 0:01:15.7]} 44. Kd2 {[%clk 0:01:08.5]}
44... Rg2+ {[%clk 0:01:15.4]} 45. Ke3 {[%clk 0:01:08]} 45... Rg3+ {[%clk
0:01:00.1]} 1/2-1/2

[Event "*** Titled Tuesday Blitz"]
[Site "Chess.com"]
[Date "2020.04.14"]
[Round "3"]
[White "benhal"]
[Black "H3nriqueTV"]
[Result "0-1"]
[WhiteElo "2468"]
[BlackElo "2237"]
[TimeControl "180+1"]
[EndTime "10:27:10 PDT"]
[Termination "H3nriqueTV won by resignation"]

1. e4 {[%clk 0:01:19]} 1... c5 {[%clk 0:02:59.4]} 2. Nf3 {[%clk 0:01:18.3]} 2...
b6 {[%clk 0:02:59.6]} 3. d4 {[%clk 0:01:18.8]} 3... cxd4 {[%clk 0:02:59.8]} 4.
Nxd4 {[%clk 0:01:19.7]} 4... Bb7 {[%clk 0:03:00.1]} 5. Nc3 {[%clk 0:01:19.5]}
5... a6 {[%clk 0:03:00.5]} 6. f3 {[%clk 0:01:19.6]} 6... e6 {[%clk 0:03:00.6]}
7. Be3 {[%clk 0:01:16.5]} 7... Qc7 {[%clk 0:03:00.7]} 8. a3 {[%clk 0:01:16.2]}
8... Nf6 {[%clk 0:03:00.3]} 9. Qd2 {[%clk 0:01:15.3]} 9... d6 {[%clk 0:03:00.6]}
10. O-O-O {[%clk 0:01:13.9]} 10... Nbd7 {[%clk 0:03:00.7]} 11. Kb1 {[%clk
0:01:13.4]} 11... Be7 {[%clk 0:03:00.2]} 12. g4 {[%clk 0:01:13.3]} 12... Ne5
{[%clk 0:02:59.5]} 13. g5 {[%clk 0:01:13]} 13... Nfd7 {[%clk 0:02:59.5]} 14. h4
{[%clk 0:01:12.5]} 14... Nc4 {[%clk 0:02:59.7]} 15. Bxc4 {[%clk 0:01:11.7]}
15... Qxc4 {[%clk 0:03:00.3]} 16. f4 {[%clk 0:01:12.1]} 16... b5 {[%clk
0:02:54.1]} 17. f5 {[%clk 0:01:08.7]} 17... Rc8 {[%clk 0:02:52]} 18. fxe6 {[%clk
0:01:06.9]} 18... fxe6 {[%clk 0:02:52.6]} 19. Rhf1 {[%clk 0:00:53.4]} 19... Nc5
{[%clk 0:02:36]} 20. b3 {[%clk 0:00:52.7]} 20... Nxb3 {[%clk 0:02:36]} 21. cxb3
{[%clk 0:00:43.7]} 21... Qxc3 {[%clk 0:02:35.8]} 22. Qe2 {[%clk 0:00:40.1]}
22... Bxe4+ {[%clk 0:02:34.5]} 23. Ka2 {[%clk 0:00:39.5]} 23... Qa5 {[%clk
0:01:40.2]} 24. b4 {[%clk 0:00:33.2]} 24... Qa4 {[%clk 0:01:37.9]} 25. Rc1
{[%clk 0:00:29.8]} 25... Kd7 {[%clk 0:01:34.7]} 26. Qg4 {[%clk 0:00:26.5]} 26...
Bd5+ {[%clk 0:01:33.1]} 27. Kb2 {[%clk 0:00:25.7]} 27... Rhf8 {[%clk 0:01:29.4]}
28. Rxc8 {[%clk 0:00:11.1]} 28... Rxc8 {[%clk 0:01:29.1]} 29. Bf4 {[%clk
0:00:11]} 29... Rc4 {[%clk 0:01:15.7]} 30. Bxd6 {[%clk 0:00:08.6]} 0-1